Cogmind - Beta 14 @@@ ROGUE MODE // 2024.08.30 @ 00:47:56 Player: Schmee Result: Destroyed by GU-2K5(R) with Subdweller Beam Cannon Performance ------------- Evolutions (0) 0 Regions Visited (2) 400 Robots Destroyed (25) 125 Value Destroyed (677) 677 Prototype IDs (0) 0 Alien Tech Used (0) 0 Bonus (0) 0 TOTAL SCORE: 1202 Bonus ------- None Cogmind --------- Core Integrity 0/250 Matter 232/300 Energy 245/250 System Corruption 0% Temperature Cool (9) Movement Rolling (150) Ox4 Location -10/Subcaves Parts ------- > --- POWER (1) -------- Ion Engine > --- PROPULSION (2) --- Subdweller Monowheel Subdweller Monowheel > --- UTILITY (2) ------ Huge Storage Unit Structural Scanner > --- WEAPON (2) ------- Assault Rifle Subdweller Machine Gun > --- INVENTORY (25) --- Ion Engine Ion Engine Ion Engine Ion Engine Light Ion Engine Subdweller Power Source Wheel Subdweller Optics Subdweller Optics Subdweller Laser Subdweller Laser Subdweller Beam Cannon Light Assault Rifle Barrage Gun Grenade Launcher Grenade Launcher Grenade Launcher Grenade Launcher Mace Peak State ------------ > --- POWER ------------ Ion Engine > --- PROPULSION ------- Light Treads Light Treads > --- UTILITY ---------- Huge Storage Unit Subdweller Optics > --- WEAPON ----------- Subdweller Beam Cannon Slug Cannon > --- INVENTORY -------- Ion Engine Ion Engine Ion Engine Ion Engine Ion Engine Ion Engine Light Ion Engine Subdweller Power Source Wheel Compact Wheel Small Storage Unit Structural Scanner Assault Rifle Light Assault Rifle Light Cannon Grenade Launcher Grenade Launcher Grenade Launcher Grenade Launcher Mace [Rating: 14] Favorites ----------- Power Ion Engine Engine Ion Engine Propulsion Light Treads Treads Light Treads Leg Aluminum Leg Wheel Subdweller Monowheel Utility Huge Storage Unit Device Structural Scanner Storage Huge Storage Unit Protection Light Armor Plating Weapon Mace Energy Gun Small Laser Energy Cannon Subdweller Beam Cannon Ballistic Gun Assault Rifle Ballistic Cannon Light Cannon Impact Weapon Mace Build | -11 -10 -10 ------- Run | Yrd Mat Sub Slots Evolved . | . . . Power . | . . . Propulsion . | . . . Utility . | . . . Weapon . | . . . Parts Attached 43 | . 9 34 Power 4 | . 1 3 Engine 4 | . 1 3 Core . | . . . Reactor . | . . . Propulsion 7 | . 2 5 Treads 5 | . 2 3 Leg . | . . . Wheel 2 | . . 2 Hover . | . . . Flight . | . . . Utility 12 | . 2 10 Device 9 | . 1 8 Storage 2 | . 1 1 Processor . | . . . Hackware . | . . . Protection 1 | . . 1 Artifact . | . . . Weapon 20 | . 4 16 Energy Gun . | . . . Energy Cannon 2 | . . 2 Ballistic Gun 5 | . 2 3 Ballistic Cannon 5 | . 1 4 Launcher . | . . . Special Weapon . | . . . Impact Weapon 8 | . 1 7 Slashing Weapon . | . . . Piercing Weapon . | . . . Special Melee Weapon . | . . . Unidentified Prototypes . | . . . Parts Lost 11 | . . 11 Power 2 | . . 2 Propulsion 5 | . . 5 Utility 2 | . . 2 Weapon 2 | . . 2 Highest Loss Streak 6 | . . 6 To Critical Strikes . | . . . Average Slot Usage (%) 97 | . 95 98 Engine 13 | . 14 13 Treads 22 | . 24 21 Wheel 4 | . . 5 Device 10 | . . 12 Storage 15 | . 23 14 Energy Cannon 4 | . . 4 Ballistic Gun 6 | . 16 4 Ballistic Cannon 10 | . 8 10 Impact Weapon 6 | . . 7 Peak Build Rating 14 | 6 9 14 Average Rating 10 | 6 7 11 On Entrance 7 | 6 6 9 Naked Turns . | . . . Heaviest Build 102 | 13 95 102 Greatest Support 40 | 20 40 40 Greatest Overweight (x) 32 | . 2 32 Average Overweight (x) 2 | . 1 2 Largest Inventory Capacity 25 | 8 25 25 Average Capacity 24 | 8 20 25 Most Carried 25 | 7 20 25 Average Carried 19 | 6 15 20 Final Capacity 25 | 8 25 25 Final Carried 19 | 7 19 19 Class Distribution -------------------- 97% | Mutant Dominant Class ---------------- Mutant | -10/Materials Mutant | -10/Subcaves Resources | -11 -10 -10 ----------- Run | Yrd Mat Sub Matter Collected 1045 | 221 215 609 Remotely . | . . . Salvage Created 715 | 69 378 268 Parts 56 | 5 26 25 Haulers Intercepted 2 | . 2 . Recyclers Shooed 1 | 1 . . Parts Field Recycled . | . . . Retrieved Matter . | . . . Parts Self-Destructed 8 | . . 8 Prevented . | . . . Kills | -11 -10 -10 ------- Run | Yrd Mat Sub Combat Hostiles Destroyed 19 | . 8 11 Guns 6 | . 5 1 Cannons 13 | . 3 10 Classes Destroyed 7 | 2 4 1 Builder 2 | . 2 . Tunneler 1 | 1 . . Hauler 2 | . 2 . Recycler 1 | 1 . . Swarmer 3 | . 3 . Grunt 5 | . 5 . Subdweller 11 | . . 11 Best Kill Streak 3 | 2 3 1 Combat Bots Only 3 | . 3 1 Max Kills in Single Turn 1 | 1 1 1 Gunslinging . | . . . Exploded . | . . . Melee . | . . . Uniques/NPCs Destroyed . | . . . Combat | -11 -10 -10 -------- Run | Yrd Mat Sub Hostile Shots Fired 112 | . 21 91 Missed 30 | . 8 22 Damage Taken 1785 | . 114 1671 Core 273 | . 18 255 Absorbed by Shields . | . . . Core Remaining (%) 100 | 100 . . Volleys Fired 91 | 7 29 55 Largest 2 | 2 2 2 Hottest 128 | 60 60 128 Shots Fired 181 | 14 58 109 Gun 81 | 14 47 20 Cannon 100 | . 11 89 Launcher . | . . . Special . | . . . Kinetic 137 | 7 44 86 Thermal 44 | 7 14 23 Explosive . | . . . Electromagnetic . | . . . Robot Hit Streak 13 | 3 8 13 Robot Miss Streak 6 | 2 6 3 Penetration Max . | . . . Secondary Targets . | . . . Shots Hit Robots 120 | 7 35 78 Core Hits 36 | 3 16 17 Critical Kills . | . . . Critical Parts Destroyed 1 | . . 1 Critical Strikes 2 | . . 2 Destroy 1 | . . 1 Blast 1 | . . 1 Melee Attacks 30 | . 1 29 Impact 30 | . 1 29 Slashing . | . . . Piercing . | . . . Sneak Attacks . | . . . Combat Hostiles . | . . . Follow-up Attacks . | . . . Damage Inflicted 2169 | 84 474 1611 Guns 609 | 84 337 188 Cannons 1550 | . 127 1423 Explosions . | . . . Melee . | . . . Ramming 10 | . 10 . Kinetic 1521 | 41 362 1118 Thermal 638 | 43 102 493 Explosive . | . . . Electromagnetic . | . . . Impact . | . . . Slashing . | . . . Piercing . | . . . Highest Corruption . | . . . Average Corruption . | . . . Corruption Purged . | . . . Corruption Blocked . | . . . Overload Shots . | . . . Overflow Damage . | . . . Projectiles . | . . . Explosions . | . . . Melee . | . . . Knockbacks 16 | . 1 15 Impact . | . . . Kinetic 16 | . 1 15 Secondary . | . . . Self-Inflicted Damage . | . . . Shots . | . . . Rammed . | . . . Targets Rammed 1 | . 1 . Kicked 1 | . 1 . Crushed . | . . . Highest Temperature 271 | . 6 271 Average Temperature 112 | . 4 131 Received Heat Transfer 675 | . 30 645 Effects 3 | . . 3 Energy Bleed 3 | . . 3 Siege Activations . | . . . Robots Corrupted . | . . . Combat Hostiles . | . . . Parts Fried . | . . . Impact Corruptions . | . . . Robots Melted . | . . . Combat Hostiles . | . . . Parts Melted . | . . . Heat Transferred 991 | 100 225 666 Parts Sabotaged . | . . . Parts Stolen . | . . . Parts Stripped . | . . . Power Chain Reactions . | . . . Alert | -11 -10 -10 ------- Run | Yrd Mat Sub Peak Influence 242 | 10 242 . Initial 6 | . 6 . Average 79 | 5 82 . Maximum Alert Level 1 | . 1 . Low Security (%) 87 | 100 87 . Level 1 12 | . 12 . Level 2 . | . . . Level 3 . | . . . Level 4 . | . . . Level 5 . | . . . High Security . | . . . Max Security . | . . . Squads Dispatched 2 | . 2 . Investigation . | . . . Extermination . | . . . Reinforcement 2 | . 2 . Assault . | . . . Garrison . | . . . Intercept . | . . . Searches Triggered . | . . . Construction Impeded . | . . . Haulers Reinforced . | . . . Active Scanning Responses . | . . . Cargo Convoy Interrupts . | . . . Stealth | -11 -10 -10 --------- Run | Yrd Mat Sub Distress Signals . | . . . Communications Jammed . | . . . Distress Signals . | . . . Times Spotted 24 | . 10 14 Peak Tracking Total 4 | . 4 2 Tactical Retreats 1 | . . 1 Traps | -11 -10 -10 ------- Run | Yrd Mat Sub Traps Triggered 1 | . . 1 Indirectly . | . . . Trap Hack Attempts . | . . . Triggered . | . . . Disarmed . | . . . Reprogrammed . | . . . Reused . | . . . Traps Extracted . | . . . Installed . | . . . Triggered . | . . . Machines | -11 -10 -10 ---------- Run | Yrd Mat Sub Machines Disabled 1 | . 1 . Max in Single Turn 1 | . 1 . Machines Repaired . | . . . Machines Dismantled . | . . . Machines Sabotaged . | . . . Overloaded Fab Kills . | . . . Hacking | -11 -10 -10 --------- Run | Yrd Mat Sub Machines Accessed 1 | . 1 . Terminals 1 | . 1 . Fabricators . | . . . Repair Stations . | . . . Recycling Units . | . . . Scanalyzers . | . . . Garrison Access . | . . . Total Hacks 3 | . 3 . Successful 1 | . 1 . Failed 2 | . 2 . Catastrophic . | . . . Database Lockouts . | . . . Manual 3 | . 3 . Terminals 3 | . 3 . Fabricators . | . . . Repair Stations . | . . . Recycling Units . | . . . Scanalyzers . | . . . Garrison Access . | . . . Terminal Hacks 1 | . 1 . Part Schematic 1 | . 1 . Fabricator Hacks . | . . . Repair Station Hacks . | . . . Recycling Unit Hacks . | . . . Scanalyzer . | . . . Garrison Access Hacks . | . . . Unauthorized Hacks . | . . . Terminals . | . . . Fabricators . | . . . Repair Stations . | . . . Recycling Units . | . . . Scanalyzers . | . . . Garrison Access . | . . . Data Cores Recovered . | . . . Used . | . . . Hacking Detections 1 | . 1 . Full Trace Events 1 | . 1 . Feedback Events . | . . . Feedback Blocked . | . . . Robot Schematics Acquired . | . . . Robots Built . | . . . Authchips . | . . . Time . | . . . Total Robot Build Rating . | . . . Part Schematics Acquired 1 | . 1 . Parts Built . | . . . Authchips . | . . . Time . | . . . Total Part Build Rating . | . . . Parts Repaired . | . . . Time . | . . . Parts Recycled . | . . . Recycled Matter . | . . . Retrieved Matter . | . . . Retrieved Components . | . . . Parts Scanalyzed . | . . . Part Schematics Acquired . | . . . Parts Damaged . | . . . Bothacking | -11 -10 -10 ------------ Run | Yrd Mat Sub Used RIF Installer . | . . . Robots Hacked . | . . . Non-combat . | . . . Combat . | . . . Robot Hacks Applied . | . . . Relay Couplers Released . | . . . Fabnet Peak Effective % . | . . . Robots Rewired . | . . . Allies Hacked . | . . . Hacks Repelled . | . . . Allies | -11 -10 -10 -------- Run | Yrd Mat Sub Total Allies . | . . . Largest Group . | . . . Highest-Rated Group . | . . . Highest-Rated Ally . | . . . Total Orders . | . . . Ally Attacks . | . . . Total Damage . | . . . Kills . | . . . Allies Corrupted . | . . . Allies Melted . | . . . Intel | -11 -10 -10 ------- Run | Yrd Mat Sub Robot Analysis Total . | . . . Derelict Logs Recovered . | . . . Drone Launches . | . . . Drone Recoveries . | . . . Exploration | -11 -10 -10 ------------- Run | Yrd Mat Sub Turns Passed 5226 | 44 858 4324 Spaces Moved 1811 | 19 288 1504 Core 6 | . . 6 Treads 1195 | . 235 960 Legs 72 | 19 53 . Wheels 538 | . . 538 Hover . | . . . Flight . | . . . Fastest Speed 120 | 120 120 130 Average Speed 259 | 120 245 263 Slowest Speed 1650 | 120 320 1650 Overloaded Moves . | . . . Propulsion Burnouts . | . . . Robots Hopped . | . . . Cave-ins Triggered . | . . . Exploration Rate (%) 37 | 3 41 67 Regions Visited 2 Branch Regions 1 Pre-discovered Areas 1 | . . 1 Known Exits Taken . | . . . Unknown Exits Taken 2 | 1 1 . Scrap Searched 6 | . . 6 Spaces Dug 3 | . 1 2 Terrain Destroyed 13 | . 1 12 Melee 3 | . 1 2 Projectile 10 | . . 10 AOE . | . . . Terrain Rammed . | . . . Walls Destroyed . | . . . Machines Disabled . | . . . Actions | -11 -10 -10 --------- Run | Yrd Mat Sub Total 2107 | 26 381 1700 Wait 87 | . 34 53 Move 1809 | 18 287 1504 Hop . | . . . Pick Up 32 | 1 15 16 Fast Attach 3 | . 1 2 Attach 14 | . 3 11 Detach 3 | . 1 2 Swap 26 | . 5 21 Drop 11 | . 4 7 Fire 91 | 7 29 55 Melee 30 | . 1 29 Ram . | . . . Kick 1 | . 1 . Crush . | . . . Escape Stasis . | . . . Rewire . | . . . Trap . | . . . Miscellaneous . | . . . Route ------- -11/Scrapyard -10/Materials -10/Subcaves (discovered 2 exits: [*Mat x2]) History --------- Turn | Location | Event 1 | -11/Scrapyard | Discovered new exit (range 2) 45 | -11/Scrapyard | Entered Materials 317 | -10/Materials | Build established: Mutant 819 | -10/Materials | Discovered new exit (range 9) 903 | -10/Materials | Entered Subcaves 903 | -10/Subcaves | Discovered new exit (range 13) 1009 | -10/Subcaves | Learned location of Zion (-6) 1009 | -10/Subcaves | Met a Zionite searching for "candidates" 1706 | -10/Subcaves | Ambushed by Subdwellers from Twisted Machinery 3515 | -10/Subcaves | Core integrity fell below 50% 4311 | -10/Subcaves | Core integrity fell below 20% 4347 | -10/Subcaves | Lost 6 parts (1p2n1u2w) 5105 | -10/Subcaves | Discovered new exit (range 15) 5160 | -10/Subcaves | Curiously followed by a Cobbler waking with a query about "LVR3C" 5167 | -10/Subcaves | Shifting Twisted Machinery released Shrapnel Trap 5196 | -10/Subcaves | Shifting Twisted Machinery released Flamer 5222 | -10/Subcaves | Disturbed a concealed Subdweller 5227 | -10/Subcaves | Destroyed by GU-2K5(R) with Subdweller Beam Cannon Last Messages --------------- 04391_ Acquired 25 matter. 04408_ Acquired 5 matter. 04427_ Acquired 7 matter. 04429_ Acquired 2 matter. 04433_ Acquired 9 matter. 04530_ Sub. Monowheel shoots sparks and powers down. 04548_ Sub. Power Source shoots sparks and powers down. 04974_ ZY-REX(u) builds Twisted Machinery. 05105_ EXIT=FOUND 05125_ Acquired 8 matter. 05138_ Acquired 10 matter. 05141_ Acquired 7 matter. 05150_ Acquired 8 matter. 05160_ F3-7UQ(O) wakes at your presence. 05160_ F3-7UQ(O): "LVR3C?" 05163_ F3-7UQ(O) collects matter. Shrapnel Trap falls loose from the Twisted Machinery. 05176_ Acquired 7 matter. Flamer falls loose from the Twisted Machinery. 05222_ GU-2K5(R) angrily emerges from the Twisted Machinery. Map ----- +----------------------------------------------------+ | # ########## #??????#### | | # #### ### ##% # ####???#### # | | #??## ## ## %% % ####### | | #???# ## # ###"" ""## "" | | ##???## ## # ####### ####"" ####" | | #?????# # #????## #######"""###??## | | ###????# #????## ##???##""""#???## | | ??????# ### ### #????## ###??### ???? | | ??????## ##?###?####????## ###??#### ??? | | ???????## ##???????????##### #### ### ##? | | ????????## ##????????????##### #### %#" #?? | | ?????????###?????????????## ## """"" ??## | | ?????????????????????????## """""" ??? | | ?????????????????????????## # & """""???? | | ?????????????????????????## ### " ???? | | ?????????????????????????## ### ### " "??? | | ?????????????????????????### ### ####% " "??? | | ?????????????????????????### ##### #######""""??? | | ??????????????????????????### #### ###### ???? | | ??????????????????????????##### # ##??????????? | | ???????????????????????????#### ##??????????? | | ???????????????????????######## ######??????????? | | ?????????????????????######### ######??????????? | | ??????????????????### ### ## ##??????????????? | | ??????????????????##$ #$;< O ###??????????????? | | ??????????????????### &R @ ###??????????????? | | ??????????????????##$ <##< ## ##??????????????? | | ??????????????????###?## #####??????????????? | | ??????????????????###?#### #####??????????????? | | ??????????????????????#### ###????????????????? | | ????????????????????????## ###????????????????? | | ????????????????????????## < ##????????????????? | | ????????????????????????## ###????????????????? | | ????????????????????????## ####???????????????? | | ????????????????????????## #####?????????????## | | ????????????????????????## ###???????????#### | | ????????????????????????### # ##???????????#### | | ????????????????????????## # ##???????????# | | ????????????????????????## #####?????##???# | | ????????????????????????## ########## ###### | | ????????????????????????## ###### ###### | | ????????????????????????### ## ### | | ????????????????????????###### | | ????????????????????????###### "" | | ???????????????????????### ## " ## # | | ??????????????????###?? ## """" ###### | | ??????????????????## """"" ###### | | ?????????????????? ## ###### """"" ###### | | ????????????????? ## ######### """ # ##" | | ????????????????? # ?######## #### """ " | +----------------------------------------------------+ Best States ------------- Heat Dissipation 25 Energy Generation 15 Energy Capacity 250 Matter Stores 300 Matter Capacity 300 Sight Range 21 Terrain Scan Density 10 Armor Coverage 150 Evasion (%) 55 Recoil Reduction 2 Item Schematics ----------------- Hcp. Storage Unit | -10/Materials | Hacked Robot Schematics ------------------ None Fabricated ------------ Nothing Alien Tech Used ----------------- None Achievements -------------- None Challenges ------------ None Game ------ Seed BombFrostBotcube Manual? 0 Play Time 00:22:39 Cumulative 159.0 hours Start 2024.08.30 @ 00:27:39 End 2024.08.30 @ 00:47:56 Sessions 1 Manual Loads 0 Difficulty Rogue Special Mode None Game No. 80 Rogue 78 Adventurer 0 Explorer 2 Win Type - Total 9 Types 9/0/0/0/0/0/0/0/0 Lore% 57 Gallery% 70 Achievement% 57 Wizard Run 0 Options --------- Layout 0 ASCII 0 Keyboard 1 Movement Numpad Keybinds 0 Fullscreen 1 Font 24/Smallcaps Map View 76x50 Zoom Use 0% Tactical HUD 1 Map Filters NONE Filters NONE Steam 1 RUN: 3cf02fc5-8f7a-4132-818c-4b001a099ebc